fUSD/lending_fUSD_20250512
["ID","MTS","AMOUNT","RATE_DAILY","PERIOD"]
[360820263,1747039833083,-12322.70967959,0.00013268,2]
[360820264,1747039833093,-2962.8261968,0.00013291,2]
[360820265,1747039833102,-2962.8261968,0.00013368,2]
[360820266,1747039833112,-1993.588,0.00013412,2]
[360820267,1747039833122,-2962.8261968,0.00013444,2]
[360820268,1747039833132,-3917.22767791,0.00013512,2]
[360820269,1747039833142,-2338.14112483,0.00013521,2]
[360820270,1747039833155,-331.14851368,0.00013521,2]
[360820271,1747039833167,-293.53655829,0.00013521,2]
[360820272,1747039833177,-255.0,0.00013549,2]
[360820273,1747039833186,-693.3919763,0.00013555,2]
[360820274,1747039833195,-4000.0,0.0001356,2]
[360820275,1747039833205,-200.0,0.00013588,2]
[360820276,1747039833215,-15043.52967586,0.00013591,2]
[360820279,1747039837919,-4117.42694455,0.00013591,2]
[360820280,1747039837931,-1255.45367959,0.00013591,2]
[360820281,1747039837940,-420.0,0.00013592,2]
[360820282,1747039837949,-777.84604376,0.00013593,2]
[360820283,1747039838026,-8253.64930209,0.00013593,2]
[360820284,1747039838036,-271.21711473,0.00013598,2]
[360820285,1747039838045,-2962.8261968,0.00013598,2]
[360820286,1747039838054,-199.05888608,0.00013598,2]
[360820287,1747039838063,-1680.0,0.00013625,2]
[360820288,1747039838072,-250.0,0.00013626,2]
[360820289,1747039838082,-1711.118,0.00013629,2]
[360820290,1747039838091,-1267.6565167,0.00013629,2]
[360820291,1747039838100,-706.45435554,0.00013637,2]
[360820292,1747039838109,-1834.0,0.0001365,2]
[360820293,1747039838118,-1834.0,0.0001365,2]
[360820294,1747039838127,-112.31064929,0.0001365,2]
[360820519,1747039840361,-0.00483102,0.0001365,2]
[360820522,1747039840375,-1373.71206948,0.0001365,2]
[360820524,1747039840388,-347.97245021,0.0001365,2]
[360820527,1747039840399,-1834.0,0.0001365,2]
[360820529,1747039840409,-1834.0,0.0001365,2]
[360820531,1747039840420,-1834.0,0.0001365,2]
[360820533,1747039840431,-1830.34431725,0.0001365,2]
[360820825,1747039843114,-3.65568275,0.0001365,2]
[360820828,1747039843125,-1834.0,0.0001365,2]
[360820831,1747039843136,-1834.0,0.0001365,2]
[360820834,1747039843147,-1834.0,0.0001365,2]
[360820837,1747039843158,-4926.53662267,0.00013654,2]
[360820840,1747039843172,-938.31927827,0.00013654,2]
[360820842,1747039843183,-154.008,0.00013668,2]
[360820845,1747039843195,-500.0,0.00013673,2]
[360820847,1747039843206,-500.0,0.00013673,2]
[360820849,1747039843216,-500.0,0.00013673,2]
[360820851,1747039843227,-500.0,0.00013673,2]
[360820853,1747039843239,-930.0,0.00013685,2]
[360820856,1747039843251,-1304.0,0.00013685,2]
[360820858,1747039843263,-628.0,0.00013685,2]
[360820860,1747039843278,-798.0,0.00013685,2]
[360820862,1747039843288,-5939.0,0.00013685,2]
[360820864,1747039843299,-1146.0,0.00013685,2]
[360820866,1747039843312,-584.0,0.00013685,2]
[360820869,1747039843324,-1249.0,0.00013685,2]
[360820871,1747039843334,-552.0,0.00013685,2]
[360820873,1747039843347,-918.0,0.00013685,2]
[360820875,1747039843359,-1456.0,0.00013685,2]
[360820878,1747039843371,-4029.0,0.00013685,2]
[360820880,1747039843382,-836.0,0.00013685,2]
[360820882,1747039843393,-6818.0,0.00013685,2]
[360820884,1747039843405,-188.312,0.00013685,2]
[360820886,1747039843415,-879.0,0.00013685,2]
[360820889,1747039843426,-150.0,0.00013685,2]
[360820891,1747039843436,-286.39657169,0.00013698,2]
[360820893,1747039843446,-500.0,0.00013698,2]
[360820895,1747039843455,-678.76,0.00013698,2]
[360820897,1747039843465,-348.70447759,0.00013698,2]
[360820899,1747039843475,-380.58717803,0.00013698,2]
[360820901,1747039843485,-400.0,0.00013698,2]
[360820904,1747039843497,-400.0,0.00013698,2]
[360820906,1747039843510,-380.27875041,0.00013698,2]
[360820908,1747039843520,-400.0,0.00013698,2]
[360820910,1747039843531,-400.0,0.00013698,2]
[360820912,1747039843542,-400.0,0.00013698,2]
[360820914,1747039843551,-400.0,0.00013698,2]
[360820917,1747039843561,-400.0,0.00013698,2]
[360820921,1747039843572,-400.0,0.00013698,2]
[360820923,1747039843582,-400.0,0.00013698,2]
[360820925,1747039843593,-400.0,0.00013698,2]
[360820927,1747039843605,-400.0,0.00013698,2]
[360820929,1747039843615,-400.0,0.00013698,2]
[360820931,1747039843626,-400.0,0.00013698,2]
[360820933,1747039843636,-400.0,0.00013698,2]
[360820936,1747039843648,-400.0,0.00013698,2]
[360820938,1747039843658,-400.0,0.00013698,2]
[360820940,1747039843668,-400.0,0.00013698,2]
[360820942,1747039843679,-400.0,0.00013698,2]
[360820944,1747039843689,-400.0,0.00013698,2]
[360820946,1747039843699,-400.0,0.00013698,2]
[360820949,1747039843712,-400.0,0.00013698,2]
[360820951,1747039843723,-400.0,0.00013698,2]
[360820953,1747039843734,-400.0,0.00013698,2]
[360820955,1747039843747,-486.2621986,0.00013698,2]
[360820957,1747039843758,-400.0,0.00013698,2]
[360820960,1747039843769,-450.0,0.00013698,2]
[360820962,1747039843781,-400.0,0.00013698,2]
[360820964,1747039843792,-400.0,0.00013698,2]
[360820966,1747039843803,-400.0,0.00013698,2]
[360820968,1747039843814,-400.0,0.00013698,2]
[360820970,1747039843826,-400.0,0.00013698,2]
[360820973,1747039843836,-400.0,0.00013698,2]
[360820975,1747039843847,-400.0,0.00013698,2]
[360820977,1747039843857,-400.0,0.00013698,2]
[360820979,1747039843867,-400.0,0.00013698,2]
[360820981,1747039843878,-151.30148519,0.00013698,2]
[360820983,1747039843888,-400.0,0.00013698,2]
[360820985,1747039843900,-400.0,0.00013698,2]
[360820988,1747039843911,-400.0,0.00013698,2]
[360820990,1747039843921,-213.1106923,0.00013698,2]
[360820992,1747039843931,-500.0,0.00013698,2]
[360820994,1747039843942,-400.0,0.00013698,2]
[360820996,1747039843953,-2636.45,0.00013698,2]
[360820998,1747039843964,-2636.45,0.00013698,2]
[360821000,1747039843975,-2636.45,0.00013698,2]
[360821002,1747039843985,-2636.45,0.00013698,2]
[360821004,1747039843996,-2636.45,0.00013698,2]
[360821007,1747039844007,-2636.45,0.00013698,2]
[360821009,1747039844017,-2636.45,0.00013698,2]
[360821012,1747039844030,-2636.45,0.00013698,2]
[360821014,1747039844040,-2636.45,0.00013698,2]
[360821016,1747039844051,-2636.45,0.00013698,2]
[360821018,1747039844062,-1684.9,0.00013698,2]
[360821020,1747039844076,-2636.45,0.00013698,2]
[360821022,1747039844086,-1684.9,0.00013698,2]
[360821024,1747039844097,-2636.45,0.00013698,2]
[360821027,1747039844109,-1684.9,0.00013698,2]
[360821029,1747039844119,-2636.45,0.00013698,2]
[360821031,1747039844130,-1684.9,0.00013698,2]
[360821033,1747039844141,-2636.45,0.00013698,2]
[360821035,1747039844151,-1684.9,0.00013698,2]
[360821037,1747039844162,-2636.45,0.00013698,2]
[360821039,1747039844172,-1684.9,0.00013698,2]
[360821041,1747039844183,-2636.45,0.00013698,2]
[360821044,1747039844194,-1684.9,0.00013698,2]
[360821046,1747039844205,-2636.45,0.00013698,2]
[360821048,1747039844216,-1684.9,0.00013698,2]
[360821050,1747039844226,-2636.45,0.00013698,2]
[360821052,1747039844237,-1684.9,0.00013698,2]
[360821054,1747039844248,-2636.45,0.00013698,2]
[360821057,1747039844259,-1684.9,0.00013698,2]
[360821059,1747039844275,-2636.45,0.00013698,2]
[360821061,1747039844286,-1684.9,0.00013698,2]
[360821063,1747039844297,-2636.45,0.00013698,2]
[360821065,1747039844307,-1684.9,0.00013698,2]
[360821067,1747039844318,-2636.45,0.00013698,2]
[360821069,1747039844330,-407.57784222,0.00013698,2]
[360821073,1747039844353,-519.05,0.00013698,2]
[360821075,1747039844366,-758.27215778,0.00013698,2]
[360821077,1747039844377,-2636.45,0.00013698,2]
[360821079,1747039844387,-76.54592569,0.00013698,2]
[360821235,1747039845961,-1608.35407431,0.00013698,2]
[360821237,1747039845971,-2636.5210629,0.00013698,2]
[360821239,1747039845982,-876.92486279,0.00013698,2]
[360821241,1747039845994,-807.97513721,0.00013698,2]
[360821244,1747039846006,-222.02436279,0.00013698,2]
[360821263,1747039846174,-462.09264945,0.00013698,2]
[360821265,1747039846188,-1000.78298776,0.00013698,2]
[360821267,1747039846199,-1684.9,0.00013698,2]
[360821269,1747039846210,-1684.9,0.00013698,2]
[360821271,1747039846220,-1684.9,0.00013698,2]
[360821274,1747039846231,-1684.9,0.00013698,2]
[360821276,1747039846241,-1684.9,0.00013698,2]
[360821278,1747039846252,-1684.9,0.00013698,2]
[360821280,1747039846267,-1684.9,0.00013698,2]
[360821282,1747039846279,-9036.6,0.00013698,2]
[360821284,1747039846289,-11733.08153224,0.00013698,2]
[360821292,1747039846353,-8265.07846776,0.00013698,2]
[360821294,1747039846364,-1473.90713224,0.00013698,2]
[360822005,1747039879418,221.3909797,0.00015,20]
[360822006,1747039910517,-195.8507542,0.00012385,2]
[360822007,1747039924074,-300.0,0.00012384,2]
[360822008,1747039924107,-26.61333176,0.00012385,2]
[360822009,1747039939100,-210.32920161,0.00012385,2]
[360822010,1747039954119,-67.20671243,0.00012385,2]
[360822011,1747039954150,-330.5790684,0.00012385,2]
[360822012,1747039969228,-182.89717704,0.00012384,2]
[360822013,1747039974532,852.81,0.00010907,2]
[360822014,1747039984821,-317.10282296,0.00012384,2]
[360822015,1747039984849,-45.52678669,0.00012384,2]
[360822016,1747039999093,-335.31910225,0.00012384,2]
[360822017,1747040013985,-119.15411106,0.00012384,2]
[360822018,1747040014017,-42.55505946,0.00012384,2]
[360822019,1747040028972,-261.62682017,0.00012322,2]
[360822020,1747040044023,-96.37936683,0.00012322,2]
[360822021,1747040044048,-70.41791617,0.00012383,2]
[360822022,1747040059716,-174.23421917,0.00012383,2]
[360822023,1747040074717,-55.34786466,0.00012383,2]
[360822024,1747040074743,-113.31086708,0.00012383,2]
[360822025,1747040089048,-215.03402899,0.00012383,2]
[360822026,1747040104063,-253.182332,0.00012382,2]
[360822027,1747040119734,-198.15484678,0.00012321,2]
[360822028,1747040134067,-230.26925622,0.00012321,2]
[360822029,1747040134090,-11.81391556,0.00012382,2]
[360822030,1747040242790,1800.0,0.00028,120]
[360822031,1747040312925,-237.72882043,0.00012281,2]
[360822032,1747040312949,-28.98150066,0.0001232,2]
[360822033,1747040319045,-196.22651834,0.0001232,2]
[360822034,1747040319067,-142.60135661,0.00012349,2]
[360822035,1747040329509,-154.8364,0.00012282,2]
[360822036,1747040329532,-79.65842941,0.00012349,2]
[360822037,1747040329559,-47.96614806,0.00012349,2]
[360822038,1747040345484,-170.7393119,0.00012349,2]
[360822039,1747040359618,-205.14971063,0.00012349,2]
[360822040,1747040374107,-76.14482941,0.00012349,2]
[360822041,1747040374138,-177.95617925,0.00012349,2]
[360822042,1747040390263,-55.67546984,0.00012349,2]
[360822043,1747040390290,-123.94218334,0.00012349,2]
[360822044,1747040404188,-289.24933179,0.00012348,2]
[360822045,1747040419656,-10.75066821,0.00012348,2]
[360822046,1747040419679,-191.17449876,0.00012348,2]
[360822047,1747040434068,-170.7393119,0.00012249,2]
[360822048,1747040449049,-252.68798958,0.00012286,2]
[360822049,1747040464046,-103.28496742,0.00012286,2]
[360822050,1747040598713,-159.63395815,0.00012246,2]
[360822051,1747040614953,-157.02324199,0.00012246,2]
[360822052,1747040668416,1119.94,0.00025,60]
[360822053,1747040698802,-298.53620211,0.000122,2]
[360822054,1747040698826,-33.46379789,0.00012348,2]
[360822055,1747040802107,-500.0,0.00012346,2]
[360822056,1747040802135,-215.46926082,0.00012346,2]
[360822057,1747040925159,-152.0,0.00012245,2]
[360822058,1747040940578,-59.1048001,0.00012245,2]
[360822068,1747040950250,150.0,0.00013699,7]
[360822070,1747040962212,163.8,0.00012116,2]
[360822081,1747041005325,1988.578312,0.00012287,2]
[360822082,1747041006440,-300.0,0.00012287,2]
[360822083,1747041015557,-238.23859776,0.00012287,2]
[360822084,1747041031224,-416.36168994,0.00012287,2]
[360822085,1747041032138,-4093.70437699,0.00012287,2]
[360822086,1747041032245,-681.98456538,0.00012287,2]
[360822087,1747041032351,-571.2855289,0.00012287,2]
[360822088,1747041037474,-3218.37692903,0.00012287,2]
[360822089,1747041037484,-671.4,0.00012329,2]
[360822090,1747041037493,-250.0,0.00012337,2]
[360822091,1747041037503,-300.0,0.00012343,2]
[360822092,1747041037513,-250.0,0.00012344,2]
[360822093,1747041037524,-541.22307097,0.00012344,2]
[360822100,1747041038221,-658.77692903,0.00012344,2]
[360822101,1747041038231,-500.0,0.00012345,2]
[360822102,1747041038240,-500.0,0.00012345,2]
[360822103,1747041038250,-500.0,0.00012345,2]
[360822104,1747041038260,-500.0,0.00012345,2]
[360822105,1747041038270,-604.19642093,0.00012345,2]
[360822106,1747041038280,-464.13,0.00012351,2]
[360822107,1747041038289,-214.79742877,0.00012384,2]
[360822108,1747041038299,-250.0,0.00012388,2]
[360822109,1747041038308,-682.23,0.00012445,2]
[360822110,1747041038318,-623.66,0.00012459,2]
[360822111,1747041038328,-1000.0,0.00012514,2]
[360822112,1747041038337,-817.8,0.0001257,2]
[360822113,1747041038347,-240.29,0.00012623,2]
[360822114,1747041038357,-731.6,0.00012644,2]
[360822115,1747041038366,-166.87,0.000127,2]
[360822116,1747041038375,-290.02,0.00012749,2]
[360822117,1747041038385,-211.10480009,0.00012872,2]
[360822118,1747041038395,-228.91429089,0.0001292,2]
[360822119,1747041038404,-150.99,0.0001292,2]
[360822120,1747041038413,-207.4,0.00013012,2]
[360822121,1747041038423,-852.81,0.00013171,2]
[360822122,1747041038432,-421.0,0.00013178,2]
[360822123,1747041038442,-166.87,0.00013224,2]
[360822124,1747041038451,-150.0,0.00013224,2]
[360822125,1747041038461,-185.84193,0.00013265,2]
[360822126,1747041038470,-185.84193,0.00013486,2]
[360822127,1747041038480,-211.10480009,0.00013498,2]
[360822128,1747041038489,-668.65185757,0.00013542,2]
[360822129,1747041038499,-420.0,0.00013545,2]
[360822130,1747041038510,-930.0,0.0001355,2]
[360822131,1747041038519,-1304.0,0.0001355,2]
[360822132,1747041038530,-798.0,0.0001355,2]
[360822133,1747041038539,-628.0,0.0001355,2]
[360822135,1747041038548,-1249.0,0.0001355,2]
[360822137,1747041038558,-584.0,0.0001355,2]
[360822138,1747041038567,-918.0,0.0001355,2]
[360822139,1747041038576,-1456.0,0.0001355,2]
[360822140,1747041038586,-552.0,0.0001355,2]
[360822141,1747041038595,-879.0,0.0001355,2]
[360822142,1747041038605,-4029.0,0.0001355,2]
[360822143,1747041038614,-6818.0,0.0001355,2]
[360822144,1747041038623,-836.0,0.0001355,2]
[360822145,1747041038635,-761.74702,0.0001356,2]
[360822146,1747041038645,-250.0,0.00013562,2]
[360822147,1747041038654,-1680.0,0.00013578,2]
[360822148,1747041038664,-500.0,0.00013588,2]
[360822149,1747041038675,-200.0,0.00013588,2]
[360822150,1747041038686,-2036.46409817,0.00013598,2]
[360822151,1747041038706,-1699.499235,0.00013598,2]
[360822152,1747041038717,-2259.59806683,0.00013598,2]
[360822153,1747041038727,-2450.31072418,0.00013598,2]
[360822154,1747041038740,-49.68927582,0.00013598,2]
[360822155,1747041038750,-154.85753807,0.00013598,2]
[360822156,1747041038760,-361.35666665,0.00013598,2]
[360822157,1747041038770,-303.5674,0.00013598,2]
[360822158,1747041038780,-2300.00588466,0.000136,2]
[360822159,1747041038790,-1464.502,0.00013629,2]
[360822160,1747041038800,-163.579,0.00013629,2]
[360822161,1747041038809,-1080.5959135,0.00013629,2]
[360822162,1747041038819,-239.27326585,0.00013648,2]
[360822190,1747041040272,-272.688,0.0001355,2]
[360822192,1747041040283,-92.74158925,0.00013648,2]
[360822234,1747041040807,-107.32070213,0.00013648,2]
[360822235,1747041041031,-267.1187983,0.00013648,2]
[360822236,1747041041042,-1185.0,0.00013661,2]
[360822237,1747041041246,-500.0,0.00013673,2]
[360822238,1747041041256,-500.0,0.00013673,2]
[360822239,1747041041266,-267.8812017,0.00013673,2]
[360822240,1747041041277,-232.1187983,0.00013673,2]
[360822241,1747041041289,-500.0,0.00013673,2]
[360822242,1747041041298,-150.0,0.00013685,2]
[360822243,1747041041308,-150.241,0.00013685,2]
[360822244,1747041041317,-164.395,0.00013685,2]
[360822245,1747041041326,-218.315,0.00013685,2]
[360822246,1747041041336,-150.0,0.00013685,2]
[360822247,1747041041345,-155.168,0.00013685,2]
[360822248,1747041041354,-296.486,0.00013685,2]
[360822249,1747041041363,-150.0,0.00013685,2]
[360822250,1747041041372,-157.233,0.00013685,2]
[360822251,1747041041381,-278.189,0.00013685,2]
[360822252,1747041041391,-334.73894211,0.00013688,2]
[360822253,1747041041400,-334.73894211,0.00013688,2]
[360822254,1747041041409,-334.73894211,0.00013688,2]
[360822255,1747041041419,-6805.0156189,0.00013691,2]
[360822256,1747041041427,-7653.90698284,0.00013691,2]
[360822257,1747041041439,-799.9561755,0.00013691,2]
[360822258,1747041041450,-558.76859063,0.00013691,2]
[360822268,1747041044310,-199.05888608,0.00013598,2]
[360822269,1747041044320,-864.4767308,0.00013629,2]
[360822270,1747041044329,-254.80938332,0.00013691,2]
[360822271,1747041044366,-12543.73099217,0.00013691,2]
[360822272,1747041044473,-5240.41418863,0.00013691,2]
[360822273,1747041044527,-16589.70142047,0.00013691,2]
[360822274,1747041044582,-471.75623446,0.00013691,2]
[360822275,1747041044593,-1426.13691535,0.00013691,2]
[360822422,1747041046119,-901.9,0.0001355,2]
[360822428,1747041046173,-244.1,0.0001355,2]
[360822430,1747041046182,-53444.71525849,0.00013691,2]
[360822455,1747041046437,-313.15946157,0.00013691,2]
[360822462,1747041046493,-3712.08920011,0.00013691,2]
[360822553,1747041075024,2592.97779761,0.00013,7]
[360822554,1747041075177,153.363877,0.00015,5]
[360822555,1747041075493,153.363877,0.00014725,5]
[360822556,1747041075819,153.363877,0.0001445,5]
[360822557,1747041076126,153.363877,0.00014175,5]
[360822558,1747041076415,153.363877,0.00014207,12]
[360822559,1747041076742,153.363877,0.00014207,12]
[360822560,1747041077043,153.363877,0.00014207,12]
[360822562,1747041077341,153.363877,0.00014207,12]
[360822563,1747041086184,1000.0,0.000137,5]
[360822564,1747041088368,1200.0,0.000138,5]
[360822565,1747041090499,200.0,0.000139,5]
[360822566,1747041092822,200.0,0.000145,5]
[360822567,1747041094732,200.0,0.000146,5]
[360822568,1747041096831,200.0,0.000147,5]
[360822569,1747041098932,609.0,0.000148,5]
[360822570,1747041100430,-321.34430512,0.00012246,2]
[360822572,1747041105506,-224.05540718,0.00012246,2]
[360822573,1747041108757,-46.9856877,0.00012246,2]
[360822576,1747041123394,1050.24,0.0001084,2]
[360822577,1747041124763,305.25290289,0.00012286,2]
[360822579,1747041129380,-194.74709711,0.00012286,2]
[360822580,1747041129410,-28.83816544,0.00012286,2]
[360822581,1747041135503,-174.17614686,0.00012286,2]
[360822585,1747041192638,-159.76,0.00012284,2]
[360822587,1747041208321,-140.24,0.00012284,2]
[360822588,1747041208349,-13.83969052,0.00012285,2]
[360822589,1747041222811,-277.31415817,0.00012285,2]
[360822590,1747041237668,-208.84615131,0.00012285,2]
[360822591,1747041237696,-13.83969052,0.00012285,2]
[360822593,1747041252628,-300.0,0.00012284,2]
[360822594,1747041252659,-141.14329427,0.00012285,2]
[360822596,1747041257123,-300.0,0.00012285,2]
[360822598,1747041263000,-45.01701521,0.00012285,2]
[360822599,1747041263030,-229.38674645,0.00012285,2]
[360822600,1747041270942,-175.59623834,0.00012285,2]
[360822601,1747041282650,-262.57356591,0.00012284,2]
[360822602,1747041296327,-180.30363672,0.00012284,2]
[360822604,1747041303641,-260.88918131,0.00012283,2]
[360822607,1747041313107,-39.11081869,0.00012283,2]
[360822608,1747041313131,-367.06134062,0.00012283,2]
[360822610,1747041317625,-170.50786954,0.00012283,2]
[360822612,1747041321769,-293.49715312,0.00012283,2]
[360822613,1747041328037,-234.46111386,0.00012283,2]
[360822614,1747041341365,-134.47252286,0.00012283,2]
[360822615,1747041341389,-77.34636328,0.00012283,2]
[360822617,1747041352018,-72.65363672,0.00012283,2]
[360822618,1747041352042,-87.10636328,0.00012283,2]
[360822620,1747041356992,-212.89363672,0.00012283,2]
[360822621,1747041357024,-39.10636328,0.00012284,2]
[360822622,1747041371378,-18.01643409,0.00012284,2]
[360822623,1747041371408,-268.36718652,0.00012284,2]
[360822625,1747041384927,-231.63281348,0.00012284,2]
[360822626,1747041384960,-29.69136035,0.00012284,2]
[360822627,1747041387607,-217.99600651,0.00012284,2]
[360822633,1747041482586,-217.99600651,0.00012282,2]
[360822635,1747041488027,-82.00399349,0.00012282,2]
[360822636,1747041488049,-150.0,0.00012282,2]
[360822637,1747041488076,-84.4317474,0.00012283,2]
[360822639,1747041492534,-182.51928359,0.00012222,2]
[360822640,1747041492561,-161.67367042,0.00012283,2]
[360822642,1747041496424,-253.89458218,0.00012283,2]
[360822643,1747041496452,-48.87022127,0.00012283,2]
[360822645,1747041503327,-174.98116013,0.00012283,2]
[360822646,1747041510044,-152.30856921,0.00012283,2]
[360822648,1747041523795,-123.84004939,0.00012283,2]
[360822649,1747041523825,-70.46556457,0.00012283,2]
[360822650,1747041536357,-244.04296654,0.00012283,2]
[360822652,1747041543893,-152.83507103,0.00012283,2]
[360822654,1747041552206,-32.65639786,0.00012283,2]
[360822655,1747041552239,-142.32476227,0.00012283,2]
[360822656,1747041566286,-152.30856921,0.00012282,2]
[360822657,1747041592483,360.91080284,0.00028,120]
[360822658,1747041636391,-272.35246577,0.00012267,2]
[360822659,1747041691755,1320.57035431,0.00025,120]
[360822660,1747041996186,-155.3925909,0.00012165,2]
[360822661,1747041996217,-500.0,0.00012263,2]
[360822662,1747041996249,-72.81272761,0.00012263,2]
[360822663,1747042023296,150.0,0.00013699,7]
[360822664,1747042115072,216.87583761,0.0001,2]
[360822675,1747042152114,-150.0,0.00012262,2]
[360822676,1747042152139,-300.0,0.00012262,2]
[360822677,1747042152171,-500.0,0.00012262,2]
[360822678,1747042152202,-254.124334,0.00012262,2]
[360822697,1747042232383,-167.50883804,0.00012248,2]
[360822698,1747042232393,-105.30084068,0.00012262,2]
[360822699,1747042232404,-194.69915932,0.00012262,2]
[360822700,1747042232412,-1200.0,0.00012262,2]
[360822701,1747042232421,-300.0,0.00012262,2]
[360822702,1747042232431,-12418.79,0.00012263,2]
[360822703,1747042232440,-250.0,0.00012264,2]
[360822704,1747042232450,-250.0,0.0001228,2]
[360822705,1747042232459,-982.03,0.00012288,2]
[360822706,1747042232467,-226.92591047,0.00012315,2]
[360822707,1747042232476,-191.96014925,0.00012315,2]
[360822708,1747042232485,-264.06,0.00012316,2]
[360822709,1747042232495,-250.0,0.00012342,2]
[360822710,1747042232504,-508.52,0.00012391,2]
[360822711,1747042232513,-199.62,0.00012456,2]
[360822712,1747042232522,-2121.8,0.00012529,2]
[360822713,1747042232532,-1000.0,0.00012583,2]
[360822714,1747042232541,-310.69,0.00012608,2]
[360822715,1747042232552,-18.73604097,0.00012653,2]
[360822716,1747042232563,-414.37395903,0.00012653,2]
[360822717,1747042232572,-170.06,0.00012664,2]
[360822718,1747042232582,-167.43,0.00012703,2]
[360822719,1747042232591,-721.94,0.0001277,2]
[360822720,1747042232600,-245.78,0.00012783,2]
[360822721,1747042232609,-658.51604097,0.00012997,2]
[360822722,1747042232620,-163.18300158,0.00012997,2]
[360822723,1747042232630,-151.0,0.00013012,2]
[360822724,1747042232639,-60.6115432,0.00013012,2]
[360822725,1747042232650,-90.3884568,0.00013012,2]
[360822726,1747042232659,-155.0,0.00013012,2]
[360822727,1747042232669,-668.65185757,0.00013012,2]
[360822728,1747042232678,-207.4,0.00013012,2]
[360822729,1747042232688,-152.70862281,0.00013012,2]
[360822730,1747042232698,-1050.24,0.00013104,2]
[360822731,1747042232707,-382.51101701,0.00013157,2]
[360822732,1747042232716,-863.7023515,0.00013157,2]
[360822733,1747042232725,-150.0,0.00013346,2]
[360822734,1747042232734,-696.71443288,0.00013347,2]
[360822735,1747042232745,-488.28556712,0.00013347,2]
[360822736,1747042232754,-1185.0,0.00013347,2]
[360822737,1747042232763,-1185.0,0.00013347,2]
[360822738,1747042232772,-1185.0,0.00013347,2]
[360822739,1747042232781,-125.28287063,0.00013347,2]
[360822740,1747042232792,-1059.71712937,0.00013347,2]
[360822741,1747042232803,-1185.0,0.00013347,2]
[360822742,1747042232812,-1185.0,0.00013347,2]
[360822743,1747042232821,-1185.0,0.00013347,2]
[360822744,1747042232830,-1185.0,0.00013347,2]
[360822745,1747042232839,-178.35483354,0.00013347,2]
[360822747,1747042232848,-5254.03603709,0.00013368,2]
[360822749,1747042232859,-3582.43870301,0.00013368,2]
[360822754,1747042232897,-667.74701208,0.00013368,2]
[360822756,1747042232909,-1302.66754437,0.00013368,2]
[360822759,1747042232927,-676.44546311,0.00012278,2]
[360822761,1747042232939,-866.93453689,0.00012278,2]
[360822763,1747042232948,-404.45236491,0.00013368,2]
[360822765,1747042232957,-1322.0,0.000134,2]
[360822767,1747042232967,-23.57443074,0.00013458,2]
[360822768,1747042232977,-384.36283762,0.00013458,2]
[360822769,1747042232986,-55.63716238,0.00013458,2]
[360822770,1747042232997,-364.36283762,0.00013458,2]
[360822771,1747042233011,-271.73857164,0.00013458,2]
[360822772,1747042233022,-148.26142836,0.00013458,2]
[360822773,1747042233031,-937.70352544,0.00013489,2]
[360822779,1747042238333,-742.29647456,0.00013489,2]
[360822780,1747042238343,-250.0,0.0001349,2]
[360822781,1747042238353,-693.3919763,0.0001356,2]
[360822782,1747042238363,-200.0,0.00013588,2]
[360822783,1747042238373,-184.0,0.0001359,2]
[360822784,1747042238383,-1000.0,0.00013591,2]
[360822785,1747042238392,-644.74876906,0.00013591,2]
[360822786,1747042238401,-212.32946303,0.00013591,2]
[360822787,1747042238411,-848.31554443,0.00013591,2]
[360822788,1747042238420,-468.53555672,0.00013591,2]
[360822789,1747042238429,-848.31554436,0.00013592,2]
[360822790,1747042238439,-468.53555663,0.00013592,2]